[Event "Live Chess"]
[Site "Chess.com"]
[Date "2023.05.21"]
[Round "-"]
[White "KeithArkell"]
[Black "Pablo_dmp"]
[Result "1-0"]
[WhiteElo "2482"]
[BlackElo "1875"]
[TimeControl "300"]
[EndTime "6:25:28 PDT"]
[Termination "KeithArkell won by resignation"]

1. b3 {[%clk 0:04:56.9]} 1... Nf6 {[%clk 0:04:57.2]} 2. Bb2 {[%clk 0:04:55.9]}
2... d5 {[%clk 0:04:53]} 3. Bxf6 {[%clk 0:04:53.9]} 3... exf6 {[%clk 0:04:35.3]}
4. g3 {[%clk 0:04:50.5]} 4... Bc5 {[%clk 0:04:31.1]} 5. d4 {[%clk 0:04:47.5]}
5... Bd6 {[%clk 0:04:27.5]} 6. Bg2 {[%clk 0:04:45.2]} 6... Be6 {[%clk
0:04:26.5]} 7. Nf3 {[%clk 0:04:42.7]} 7... c5 {[%clk 0:04:19.3]} 8. dxc5 {[%clk
0:04:40.8]} 8... Bxc5 {[%clk 0:04:19.2]} 9. O-O {[%clk 0:04:39.4]} 9... Nc6
{[%clk 0:04:15.3]} 10. e3 {[%clk 0:04:36.6]} 10... Bg4 {[%clk 0:04:09.3]} 11. h3
{[%clk 0:04:33.3]} 11... Be6 {[%clk 0:04:04.7]} 12. Nc3 {[%clk 0:04:29.8]} 12...
O-O {[%clk 0:03:55]} 13. Ne2 {[%clk 0:04:26.6]} 13... Qd7 {[%clk 0:03:52]} 14.
Kh2 {[%clk 0:04:22.8]} 14... Rac8 {[%clk 0:03:47]} 15. Ned4 {[%clk 0:04:21.8]}
15... Nxd4 {[%clk 0:03:42]} 16. Nxd4 {[%clk 0:04:20.8]} 16... Bxd4 {[%clk
0:03:33.4]} 17. Qxd4 {[%clk 0:04:19.5]} 17... Rxc2 {[%clk 0:03:27.7]} 18. Qxa7
{[%clk 0:04:18.4]} 18... Rfc8 {[%clk 0:03:16.1]} 19. Qd4 {[%clk 0:04:14.8]}
19... Qc6 {[%clk 0:03:05.4]} 20. a4 {[%clk 0:04:09.5]} 20... Qc3 {[%clk
0:02:58.5]} 21. Rad1 {[%clk 0:03:55.3]} 21... Qxd4 {[%clk 0:02:55.4]} 22. Rxd4
{[%clk 0:03:52.7]} 22... Rb2 {[%clk 0:02:51.3]} 23. Bxd5 {[%clk 0:03:49.6]}
23... Rcc2 {[%clk 0:02:45.3]} 24. Kg2 {[%clk 0:03:42.3]} 24... h6 {[%clk
0:02:35.2]} 25. Bxe6 {[%clk 0:03:33.8]} 25... fxe6 {[%clk 0:02:33.5]} 26. Rb4
{[%clk 0:03:31.7]} 26... Rc3 {[%clk 0:02:08.9]} 27. Rxb7 {[%clk 0:03:27.2]}
27... Rcxb3 {[%clk 0:02:04.7]} 28. Rxb3 {[%clk 0:03:24.2]} 28... Rxb3 {[%clk
0:02:04.6]} 29. Ra1 {[%clk 0:03:23.1]} 29... Rb6 {[%clk 0:01:59.1]} 30. a5
{[%clk 0:03:22.3]} 30... Ra6 {[%clk 0:01:58.2]} 31. Kf3 {[%clk 0:03:21.7]} 31...
g5 {[%clk 0:01:52.3]} 32. Ke4 {[%clk 0:03:20.9]} 32... Kf7 {[%clk 0:01:50.6]}
33. Kd4 {[%clk 0:03:20.1]} 33... Ke7 {[%clk 0:01:49.4]} 34. Kc5 {[%clk
0:03:19.3]} 34... Kd7 {[%clk 0:01:44.7]} 35. Kb5 {[%clk 0:03:18.3]} 35... Ra8
{[%clk 0:01:40.8]} 36. a6 {[%clk 0:03:17.4]} 36... Kd6 {[%clk 0:01:37.5]} 37. a7
{[%clk 0:03:15]} 37... f5 {[%clk 0:01:33.7]} 38. Kb6 {[%clk 0:03:11.3]} 38...
Ke5 {[%clk 0:01:24.1]} 39. Ra4 {[%clk 0:03:10.1]} 1-0

[Event "Live Chess"]
[Site "Chess.com"]
[Date "2023.05.21"]
[Round "-"]
[White "RedRook90"]
[Black "SavagePawn7"]
[Result "1-0"]
[WhiteElo "1949"]
[BlackElo "789"]
[TimeControl "300"]
[EndTime "6:25:29 PDT"]
[Termination "RedRook90 won on time"]

1. c4 {[%clk 0:04:59.6]} 1... d5 {[%clk 0:04:52.9]} 2. cxd5 {[%clk 0:04:58.2]}
2... Qxd5 {[%clk 0:04:52]} 3. Nc3 {[%clk 0:04:58.1]} 3... Qd8 {[%clk 0:04:48.7]}
4. d4 {[%clk 0:04:57.8]} 4... Nf6 {[%clk 0:04:44.9]} 5. Nf3 {[%clk 0:04:56.9]}
5... Nc6 {[%clk 0:04:42.7]} 6. Bf4 {[%clk 0:04:55]} 6... e6 {[%clk 0:04:33.7]}
7. e3 {[%clk 0:04:54.2]} 7... Bb4 {[%clk 0:04:31.2]} 8. Bd3 {[%clk 0:04:52.2]}
8... Bxc3+ {[%clk 0:04:17.8]} 9. bxc3 {[%clk 0:04:52.1]} 9... O-O {[%clk
0:04:15.9]} 10. O-O {[%clk 0:04:50.4]} 10... Re8 {[%clk 0:03:54.9]} 11. Qc2
{[%clk 0:04:47]} 11... g6 {[%clk 0:03:18.7]} 12. Rab1 {[%clk 0:04:43.6]} 12...
Nh5 {[%clk 0:03:15.5]} 13. Bg3 {[%clk 0:04:38.5]} 13... Nxg3 {[%clk 0:03:11.9]}
14. hxg3 {[%clk 0:04:38.4]} 14... e5 {[%clk 0:02:56.4]} 15. Rfd1 {[%clk
0:04:28.9]} 15... exd4 {[%clk 0:02:45.9]} 16. cxd4 {[%clk 0:04:28.8]} 16... Bd7
{[%clk 0:02:34.7]} 17. Rxb7 {[%clk 0:04:26.7]} 17... Rb8 {[%clk 0:02:29.1]} 18.
Rxb8 {[%clk 0:04:24.5]} 18... Nxb8 {[%clk 0:02:27.8]} 19. Ne5 {[%clk 0:04:18.7]}
19... Qe7 {[%clk 0:02:13.7]} 20. Qxc7 {[%clk 0:04:15.4]} 20... Ba4 {[%clk
0:01:47.7]} 21. Rb1 {[%clk 0:04:11.2]} 21... Qxc7 {[%clk 0:01:44.8]} 22. Bc4
{[%clk 0:04:00.9]} 22... Nc6 {[%clk 0:01:34.2]} 23. Bxf7+ {[%clk 0:03:57.4]}
23... Kf8 {[%clk 0:01:29.3]} 24. Bxe8 {[%clk 0:03:56.5]} 24... Kxe8 {[%clk
0:01:28.4]} 25. Rc1 {[%clk 0:03:54.4]} 25... Qb6 {[%clk 0:01:17.4]} 26. Nd3
{[%clk 0:03:38.6]} 26... Bb5 {[%clk 0:01:05.4]} 27. Nc5 {[%clk 0:03:36.7]} 27...
Qa5 {[%clk 0:00:49.9]} 28. Rc2 {[%clk 0:03:29.9]} 28... Qe1+ {[%clk 0:00:38.7]}
29. Kh2 {[%clk 0:03:28.2]} 29... Nb4 {[%clk 0:00:25.7]} 30. Rb2 {[%clk
0:03:25.4]} 30... Nd3 {[%clk 0:00:21.9]} 31. Nxd3 {[%clk 0:03:24.4]} 31... Qa5
{[%clk 0:00:13.8]} 32. Nc5 {[%clk 0:03:22.5]} 1-0

[Event "Live Chess"]
[Site "Chess.com"]
[Date "2023.05.21"]
[Round "-"]
[White "vovanada"]
[Black "Tiltador"]
[Result "1-0"]
[WhiteElo "833"]
[BlackElo "823"]
[TimeControl "300"]
[EndTime "6:25:31 PDT"]
[Termination "vovanada won on time"]

1. d4 {[%clk 0:04:56.9]} 1... d5 {[%clk 0:04:57.9]} 2. Bf4 {[%clk 0:04:56.4]}
2... c6 {[%clk 0:04:55.4]} 3. e3 {[%clk 0:04:56]} 3... e6 {[%clk 0:04:53.6]} 4.
Nf3 {[%clk 0:04:52.9]} 4... Bd6 {[%clk 0:04:52.2]} 5. Bg3 {[%clk 0:04:50.9]}
5... Bxg3 {[%clk 0:04:50.2]} 6. hxg3 {[%clk 0:04:50.8]} 6... Nf6 {[%clk
0:04:48.5]} 7. c3 {[%clk 0:04:47.7]} 7... O-O {[%clk 0:04:46.4]} 8. Ne5 {[%clk
0:04:45.1]} 8... Nbd7 {[%clk 0:04:41.5]} 9. Bd3 {[%clk 0:04:21.5]} 9... g6
{[%clk 0:04:37.1]} 10. Nxd7 {[%clk 0:04:09.9]} 10... Bxd7 {[%clk 0:04:33.5]} 11.
Nd2 {[%clk 0:04:07.2]} 11... Ne4 {[%clk 0:04:31.1]} 12. Nxe4 {[%clk 0:04:00.9]}
12... dxe4 {[%clk 0:04:28.7]} 13. Bxe4 {[%clk 0:03:59.6]} 13... f5 {[%clk
0:04:27.5]} 14. Bd3 {[%clk 0:03:53.6]} 14... Qb6 {[%clk 0:04:22.2]} 15. b3
{[%clk 0:03:40]} 15... Rad8 {[%clk 0:04:20.2]} 16. g4 {[%clk 0:03:36.2]} 16...
c5 {[%clk 0:04:18.1]} 17. gxf5 {[%clk 0:03:34.2]} 17... exf5 {[%clk 0:04:16.5]}
18. Qf3 {[%clk 0:03:26.8]} 18... cxd4 {[%clk 0:04:07.4]} 19. exd4 {[%clk
0:03:22.1]} 19... Rde8+ {[%clk 0:04:01.9]} 20. Be2 {[%clk 0:03:19.3]} 20... Bc6
{[%clk 0:03:59.2]} 21. Qh3 {[%clk 0:03:07.6]} 21... Rf7 {[%clk 0:03:53.1]} 22.
O-O-O {[%clk 0:02:50]} 22... Rg7 {[%clk 0:03:40.6]} 23. Bc4+ {[%clk 0:02:38.7]}
23... Kf8 {[%clk 0:03:29.9]} 24. Rde1 {[%clk 0:02:36.3]} 24... Rxe1+ {[%clk
0:02:42.7]} 25. Rxe1 {[%clk 0:02:36.2]} 25... Qa5 {[%clk 0:02:34.4]} 26. Qe3
{[%clk 0:02:27.6]} 26... Qxa2 {[%clk 0:02:29.7]} 27. Bd5 {[%clk 0:02:04]} 27...
Qa1+ {[%clk 0:02:09.4]} 28. Kd2 {[%clk 0:02:01.5]} 28... Qa2+ {[%clk 0:01:58.5]}
29. Kd1 {[%clk 0:01:49.5]} 29... Qb1+ {[%clk 0:01:41.5]} 30. Kd2 {[%clk
0:01:36]} 30... Qb2+ {[%clk 0:01:35.8]} 31. Kd3 {[%clk 0:01:28.8]} 31... Bb5+
{[%clk 0:01:26.8]} 32. Bc4 {[%clk 0:01:23]} 32... Bc6 {[%clk 0:01:08.3]} 33. Bd5
{[%clk 0:01:16.8]} 33... Qa3 {[%clk 0:00:54.2]} 34. Bxc6 {[%clk 0:01:10.6]}
34... Qa6+ {[%clk 0:00:46.8]} 35. c4 {[%clk 0:00:48]} 35... Qxc6 {[%clk
0:00:44.6]} 36. d5 {[%clk 0:00:46.5]} 36... Qd7 {[%clk 0:00:38]} 37. Qxa7 {[%clk
0:00:40.7]} 37... b5 {[%clk 0:00:26]} 38. Qc5+ {[%clk 0:00:34.1]} 38... Kg8
{[%clk 0:00:20.8]} 39. cxb5 {[%clk 0:00:26.7]} 39... Kh8 {[%clk 0:00:15.1]} 40.
b6 {[%clk 0:00:22.9]} 40... Qd8 {[%clk 0:00:10.3]} 41. Qc6 {[%clk 0:00:16.6]}
41... Qf8 {[%clk 0:00:05.1]} 42. b7 {[%clk 0:00:14.8]} 42... Qb4 {[%clk
0:00:03.5]} 43. Qe8+ {[%clk 0:00:10.3]} 43... Rg8 {[%clk 0:00:01.8]} 44. Qe5+
{[%clk 0:00:06.2]} 1-0

[Event "Live Chess"]
[Site "Chess.com"]
[Date "2023.05.21"]
[Round "-"]
[White "RichardABates"]
[Black "grillage"]
[Result "1-0"]
[WhiteElo "2129"]
[BlackElo "1787"]
[TimeControl "300"]
[EndTime "6:25:31 PDT"]
[Termination "RichardABates won by resignation"]

1. d4 {[%clk 0:04:58.8]} 1... Nf6 {[%clk 0:04:54.2]} 2. c4 {[%clk 0:04:57]} 2...
e6 {[%clk 0:04:51.9]} 3. Nc3 {[%clk 0:04:55.3]} 3... Bb4 {[%clk 0:04:51]} 4. Qc2
{[%clk 0:04:51.9]} 4... Nc6 {[%clk 0:04:49]} 5. Nf3 {[%clk 0:04:46.8]} 5... d6
{[%clk 0:04:47.3]} 6. Bd2 {[%clk 0:04:38.8]} 6... O-O {[%clk 0:04:45.6]} 7. a3
{[%clk 0:04:37.1]} 7... Bxc3 {[%clk 0:04:44.4]} 8. Bxc3 {[%clk 0:04:35.9]} 8...
Re8 {[%clk 0:04:42.6]} 9. Rd1 {[%clk 0:04:29.9]} 9... Qe7 {[%clk 0:04:36.8]} 10.
e4 {[%clk 0:04:28.3]} 10... e5 {[%clk 0:04:31.6]} 11. d5 {[%clk 0:04:24.7]}
11... Nb8 {[%clk 0:04:29]} 12. h3 {[%clk 0:04:18.8]} 12... Nbd7 {[%clk
0:04:26.5]} 13. b4 {[%clk 0:04:15.5]} 13... b6 {[%clk 0:04:25.2]} 14. Bd3 {[%clk
0:04:13.2]} 14... Nf8 {[%clk 0:04:17]} 15. c5 {[%clk 0:04:02.8]} 15... Ng6
{[%clk 0:04:05.8]} 16. g3 {[%clk 0:03:59.9]} 16... h5 {[%clk 0:03:45.3]} 17. Qd2
{[%clk 0:03:42.5]} 17... h4 {[%clk 0:03:43]} 18. Qg5 {[%clk 0:03:33.2]} 18...
hxg3 {[%clk 0:03:30.3]} 19. fxg3 {[%clk 0:03:30.8]} 19... Nh7 {[%clk 0:03:21.9]}
20. Qxe7 {[%clk 0:03:27.2]} 20... Rxe7 {[%clk 0:03:21.1]} 21. Kf2 {[%clk
0:03:17]} 21... Nf6 {[%clk 0:02:47.5]} 22. Rc1 {[%clk 0:03:08.6]} 22... Ne8
{[%clk 0:02:35.7]} 23. Bd2 {[%clk 0:03:01.7]} 23... f6 {[%clk 0:02:33.5]} 24.
Rc2 {[%clk 0:02:56.5]} 24... Kf7 {[%clk 0:02:31.2]} 25. g4 {[%clk 0:02:53.3]}
25... Nf4 {[%clk 0:02:15]} 26. Bxf4 {[%clk 0:02:51.3]} 26... exf4 {[%clk
0:02:14.3]} 27. Nd4 {[%clk 0:02:49.2]} 27... g5 {[%clk 0:02:12]} 28. Nc6 {[%clk
0:02:39.2]} 28... Rd7 {[%clk 0:02:06.2]} 29. h4 {[%clk 0:02:37.7]} 29... Bb7
{[%clk 0:01:54.3]} 30. hxg5 {[%clk 0:02:33.2]} 30... fxg5 {[%clk 0:01:51.3]} 31.
e5 {[%clk 0:02:26.2]} 31... Bxc6 {[%clk 0:01:45]} 32. e6+ {[%clk 0:02:22.2]}
32... Kf6 {[%clk 0:01:38.4]} 33. Rh6+ {[%clk 0:02:16.3]} 33... Ke5 {[%clk
0:01:34.9]} 34. Re2+ {[%clk 0:02:11.2]} 34... Kxd5 {[%clk 0:01:32.6]} 35. Be4+
{[%clk 0:02:09.6]} 35... Kd4 {[%clk 0:01:26.6]} 36. Bxc6 {[%clk 0:02:05.5]}
36... Re7 {[%clk 0:01:24.7]} 37. Re4+ {[%clk 0:01:57.8]} 37... Kd3 {[%clk
0:01:21.3]} 38. Rh3+ {[%clk 0:01:56.4]} 1-0

[Event "Live Chess"]
[Site "Chess.com"]
[Date "2023.05.21"]
[Round "-"]
[White "NomisY"]
[Black "AndriY19966"]
[Result "1-0"]
[WhiteElo "1543"]
[BlackElo "784"]
[TimeControl "300"]
[EndTime "6:25:32 PDT"]
[Termination "NomisY won by checkmate"]

1. d4 {[%clk 0:04:57.4]} 1... d5 {[%clk 0:04:58.2]} 2. c4 {[%clk 0:04:56.2]}
2... dxc4 {[%clk 0:04:56.6]} 3. Nf3 {[%clk 0:04:54.6]} 3... e6 {[%clk
0:04:55.1]} 4. e3 {[%clk 0:04:52.9]} 4... b5 {[%clk 0:04:48.5]} 5. a4 {[%clk
0:04:50.1]} 5... Bd7 {[%clk 0:04:41]} 6. Ne5 {[%clk 0:04:39.7]} 6... f6 {[%clk
0:04:34.4]} 7. Qh5+ {[%clk 0:04:13.8]} 7... g6 {[%clk 0:04:29]} 8. Nxg6 {[%clk
0:04:12.7]} 8... hxg6 {[%clk 0:04:20.6]} 9. Qxh8 {[%clk 0:04:11.5]} 9... Nh6
{[%clk 0:04:09.7]} 10. axb5 {[%clk 0:03:48.1]} 10... Bxb5 {[%clk 0:04:03.8]} 11.
Nc3 {[%clk 0:03:46.5]} 11... c6 {[%clk 0:03:57.3]} 12. Qh7 {[%clk 0:03:25.3]}
12... g5 {[%clk 0:03:40.9]} 13. Qb7 {[%clk 0:02:33.3]} 13... Na6 {[%clk
0:03:28]} 14. Nxb5 {[%clk 0:02:27.4]} 14... cxb5 {[%clk 0:03:24.1]} 15. Qxb5+
{[%clk 0:02:23.1]} 15... Qd7 {[%clk 0:03:19.8]} 16. Qxd7+ {[%clk 0:02:15.9]}
16... Kxd7 {[%clk 0:03:18.5]} 17. Rxa6 {[%clk 0:02:15.4]} 17... e5 {[%clk
0:03:04.2]} 18. Rxf6 {[%clk 0:02:07.5]} 18... c3 {[%clk 0:02:47.8]} 19. bxc3
{[%clk 0:02:03.2]} 19... Rc8 {[%clk 0:02:46.4]} 20. Bd2 {[%clk 0:01:57.3]} 20...
Ke7 {[%clk 0:02:44.9]} 21. Rg6 {[%clk 0:01:50.8]} 21... g4 {[%clk 0:02:39.7]}
22. Be2 {[%clk 0:01:45.3]} 22... Kf7 {[%clk 0:02:36.1]} 23. Ra6 {[%clk
0:01:42.2]} 23... Rc7 {[%clk 0:02:30.9]} 24. O-O {[%clk 0:01:40.5]} 24... Rb7
{[%clk 0:02:15.7]} 25. e4 {[%clk 0:01:24.9]} 25... Ng8 {[%clk 0:02:09.9]} 26.
Bxg4 {[%clk 0:01:15.3]} 26... Bd6 {[%clk 0:02:08.3]} 27. d5 {[%clk 0:01:12.3]}
27... Bc5 {[%clk 0:02:01.8]} 28. Be3 {[%clk 0:01:11.3]} 28... Bxe3 {[%clk
0:01:55.1]} 29. fxe3+ {[%clk 0:01:10.5]} 29... Ke7 {[%clk 0:01:49.1]} 30. Rf5
{[%clk 0:01:05.7]} 30... Nf6 {[%clk 0:01:41.7]} 31. Rxe5+ {[%clk 0:01:03.2]}
31... Kf7 {[%clk 0:01:40.6]} 32. Rf5 {[%clk 0:00:51]} 32... Kg7 {[%clk
0:01:33.7]} 33. Rfxf6 {[%clk 0:00:49.6]} 33... Kh8 {[%clk 0:01:29.9]} 34. Rf5
{[%clk 0:00:45]} 34... Kg7 {[%clk 0:01:27.7]} 35. Re5 {[%clk 0:00:41.7]} 35...
Kf8 {[%clk 0:01:25.7]} 36. Rf6+ {[%clk 0:00:40.1]} 36... Kg7 {[%clk 0:01:23.3]}
37. Rf3 {[%clk 0:00:37.9]} 37... Kg6 {[%clk 0:01:21]} 38. h4 {[%clk 0:00:35.7]}
38... Rb3 {[%clk 0:01:18.1]} 39. h5+ {[%clk 0:00:31.1]} 39... Kh6 {[%clk
0:01:16.3]} 40. Rf6+ {[%clk 0:00:30.1]} 40... Kg7 {[%clk 0:01:15]} 41. Rc6
{[%clk 0:00:29.2]} 41... Ra3 {[%clk 0:01:08.9]} 42. d6 {[%clk 0:00:28.3]} 42...
Ra1+ {[%clk 0:01:05.3]} 43. Kh2 {[%clk 0:00:26.2]} 43... Rd1 {[%clk 0:01:01.9]}
44. d7 {[%clk 0:00:24.8]} 44... Kf8 {[%clk 0:00:58.8]} 45. Rd5 {[%clk
0:00:24.1]} 45... Rxd5 {[%clk 0:00:56.6]} 46. exd5 {[%clk 0:00:23.7]} 46... Ke7
{[%clk 0:00:55.8]} 47. Rc8 {[%clk 0:00:22.3]} 47... a5 {[%clk 0:00:50.4]} 48.
d8=Q+ {[%clk 0:00:21.4]} 48... Kf7 {[%clk 0:00:49.2]} 49. Rc7# {[%clk
0:00:19.5]} 1-0

[Event "Live Chess"]
[Site "Chess.com"]
[Date "2023.05.21"]
[Round "-"]
[White "AMCWAML"]
[Black "CheckThis4"]
[Result "0-1"]
[WhiteElo "2280"]
[BlackElo "2524"]
[TimeControl "300"]
[EndTime "6:25:33 PDT"]
[Termination "CheckThis4 won by resignation"]

1. e4 {[%clk 0:04:57.4]} 1... c5 {[%clk 0:04:56.6]} 2. Nf3 {[%clk 0:04:56.6]}
2... d6 {[%clk 0:04:55.9]} 3. d4 {[%clk 0:04:56.2]} 3... cxd4 {[%clk 0:04:55.3]}
4. Nxd4 {[%clk 0:04:56.1]} 4... Nf6 {[%clk 0:04:54.4]} 5. Nc3 {[%clk 0:04:55.6]}
5... g6 {[%clk 0:04:54]} 6. Be3 {[%clk 0:04:53.9]} 6... Bg7 {[%clk 0:04:53.6]}
7. f3 {[%clk 0:04:52]} 7... Nc6 {[%clk 0:04:53.2]} 8. Qd2 {[%clk 0:04:50.9]}
8... O-O {[%clk 0:04:52.5]} 9. O-O-O {[%clk 0:04:49.7]} 9... d5 {[%clk
0:04:49.6]} 10. Nxc6 {[%clk 0:04:44.2]} 10... bxc6 {[%clk 0:04:47.5]} 11. Qe1
{[%clk 0:04:42.6]} 11... Be6 {[%clk 0:04:29.5]} 12. Bd4 {[%clk 0:04:15.9]} 12...
Rb8 {[%clk 0:04:12.5]} 13. Be5 {[%clk 0:04:03.9]} 13... Rb7 {[%clk 0:04:06.6]}
14. Ba6 {[%clk 0:03:54.5]} 14... Rb6 {[%clk 0:04:05.5]} 15. Bd3 {[%clk
0:03:46.6]} 15... d4 {[%clk 0:03:51.9]} 16. Ne2 {[%clk 0:03:34.9]} 16... c5
{[%clk 0:03:47.7]} 17. b3 {[%clk 0:03:19.4]} 17... Qc8 {[%clk 0:03:26]} 18. Nf4
{[%clk 0:03:01.2]} 18... c4 {[%clk 0:03:21.4]} 19. Bxc4 {[%clk 0:02:33]} 19...
Bxc4 {[%clk 0:03:21.3]} 20. bxc4 {[%clk 0:02:31.8]} 20... Qxc4 {[%clk
0:03:15.4]} 21. Rxd4 {[%clk 0:02:25.1]} 21... Qxa2 {[%clk 0:03:09.6]} 22. Qc3
{[%clk 0:02:13.8]} 22... Qb1+ {[%clk 0:02:59.4]} 23. Kd2 {[%clk 0:02:11.8]}
23... Qxh1 {[%clk 0:02:58.7]} 24. h3 {[%clk 0:02:03.6]} 24... Rb1 {[%clk
0:02:55.5]} 25. Ke3 {[%clk 0:01:59.6]} 25... Qg1+ {[%clk 0:02:50.7]} 26. Ke2
{[%clk 0:01:55.3]} 26... Qf1+ {[%clk 0:02:45.6]} 27. Ke3 {[%clk 0:01:53.9]}
27... Re1+ {[%clk 0:02:43.7]} 0-1

[Event "Live Chess"]
[Site "Chess.com"]
[Date "2023.05.21"]
[Round "-"]
[White "LordBenin"]
[Black "zdanevych"]
[Result "1-0"]
[WhiteElo "1386"]
[BlackElo "1505"]
[TimeControl "300"]
[EndTime "6:25:40 PDT"]
[Termination "LordBenin won by resignation"]

1. e4 {[%clk 0:04:57.3]} 1... d5 {[%clk 0:04:58.2]} 2. exd5 {[%clk 0:04:54.4]}
2... c6 {[%clk 0:04:57.6]} 3. dxc6 {[%clk 0:04:52.9]} 3... Nxc6 {[%clk
0:04:57.5]} 4. Nc3 {[%clk 0:04:51.8]} 4... a6 {[%clk 0:04:56]} 5. Nf3 {[%clk
0:04:50.6]} 5... Nf6 {[%clk 0:04:54.2]} 6. Bc4 {[%clk 0:04:49.4]} 6... Bg4
{[%clk 0:04:52.2]} 7. d3 {[%clk 0:04:45.2]} 7... e6 {[%clk 0:04:50.6]} 8. O-O
{[%clk 0:04:43.2]} 8... Nd4 {[%clk 0:04:48.9]} 9. Be3 {[%clk 0:04:18.3]} 9...
Nxf3+ {[%clk 0:04:46.6]} 10. gxf3 {[%clk 0:04:17.3]} 10... Bh3 {[%clk
0:04:45.7]} 11. Re1 {[%clk 0:04:13.5]} 11... Bd6 {[%clk 0:04:42.9]} 12. Ne4
{[%clk 0:04:05.7]} 12... Nxe4 {[%clk 0:04:37.2]} 13. fxe4 {[%clk 0:04:04.5]}
13... O-O {[%clk 0:04:35.2]} 14. Qh5 {[%clk 0:03:54.5]} 14... b5 {[%clk
0:03:57]} 15. Bb3 {[%clk 0:03:50.4]} 15... Bxh2+ {[%clk 0:03:52.7]} 16. Kxh2
{[%clk 0:03:47.1]} 16... Qd6+ {[%clk 0:03:52.2]} 17. f4 {[%clk 0:03:38.9]} 17...
Bf5 {[%clk 0:03:43.2]} 18. exf5 {[%clk 0:03:34.9]} 18... exf5 {[%clk 0:03:41.9]}
19. Qh3 {[%clk 0:03:19.5]} 19... g6 {[%clk 0:03:38.8]} 20. Qg3 {[%clk
0:03:10.6]} 20... Rfe8 {[%clk 0:03:36.7]} 21. Bd2 {[%clk 0:03:07]} 21... Re7
{[%clk 0:03:30]} 22. Rxe7 {[%clk 0:03:04.6]} 22... Qxe7 {[%clk 0:03:29.9]} 23.
Bc3 {[%clk 0:02:58.5]} 23... Re8 {[%clk 0:03:24.5]} 24. Re1 {[%clk 0:02:55.4]}
1-0

[Event "Live Chess"]
[Site "Chess.com"]
[Date "2023.05.21"]
[Round "-"]
[White "OleksiyJr1"]
[Black "Doge_Dandolo"]
[Result "0-1"]
[WhiteElo "1004"]
[BlackElo "1898"]
[TimeControl "300"]
[EndTime "6:26:03 PDT"]
[Termination "Doge_Dandolo won by resignation"]

1. e4 {[%clk 0:04:58.3]} 1... c6 {[%clk 0:04:57]} 2. Nf3 {[%clk 0:04:55.5]} 2...
d5 {[%clk 0:04:48.8]} 3. e5 {[%clk 0:04:54.1]} 3... Bg4 {[%clk 0:04:29.6]} 4. d4
{[%clk 0:04:51.2]} 4... e6 {[%clk 0:04:28.5]} 5. h3 {[%clk 0:04:37.8]} 5... Bxf3
{[%clk 0:04:13.9]} 6. Qxf3 {[%clk 0:04:22.7]} 6... c5 {[%clk 0:04:09.1]} 7. c3
{[%clk 0:04:18.8]} 7... Nd7 {[%clk 0:04:04]} 8. Nd2 {[%clk 0:03:55.9]} 8... Ne7
{[%clk 0:04:02]} 9. Bd3 {[%clk 0:03:48.2]} 9... Nc6 {[%clk 0:03:59.9]} 10. O-O
{[%clk 0:03:47.6]} 10... Be7 {[%clk 0:03:58.2]} 11. Nb3 {[%clk 0:03:44.9]} 11...
cxd4 {[%clk 0:03:55.3]} 12. cxd4 {[%clk 0:03:39.6]} 12... a5 {[%clk 0:03:52.4]}
13. a4 {[%clk 0:03:34.8]} 13... Nb4 {[%clk 0:03:50.9]} 14. Bd2 {[%clk
0:03:27.2]} 14... Nxd3 {[%clk 0:03:48.5]} 15. Qxd3 {[%clk 0:03:25.3]} 15... O-O
{[%clk 0:03:44]} 16. Qe3 {[%clk 0:03:11.5]} 16... f6 {[%clk 0:03:41.3]} 17. f4
{[%clk 0:03:06.1]} 17... fxe5 {[%clk 0:03:37.4]} 18. fxe5 {[%clk 0:03:06]} 18...
Qb6 {[%clk 0:03:31.8]} 19. Qe1 {[%clk 0:02:44]} 19... Qxb3 {[%clk 0:03:10.6]}
0-1

[Event "Live Chess"]
[Site "Chess.com"]
[Date "2023.05.21"]
[Round "-"]
[White "chessfiction"]
[Black "Berdgross"]
[Result "1-0"]
[WhiteElo "2323"]
[BlackElo "697"]
[TimeControl "300"]
[EndTime "6:26:03 PDT"]
[Termination "chessfiction won by resignation"]

1. e4 {[%clk 0:04:57.9]} 1... e5 {[%clk 0:04:58.2]} 2. d4 {[%clk 0:04:57.8]}
2... d6 {[%clk 0:04:56.8]} 3. c3 {[%clk 0:04:57.7]} 3... Nc6 {[%clk 0:04:55.8]}
4. Bc4 {[%clk 0:04:56.8]} 4... exd4 {[%clk 0:04:53.6]} 5. Nf3 {[%clk 0:04:55.9]}
5... dxc3 {[%clk 0:04:51.7]} 6. O-O {[%clk 0:04:54.1]} 6... Bg4 {[%clk
0:04:48.6]} 7. Qb3 {[%clk 0:04:52.1]} 7... Be6 {[%clk 0:04:44.4]} 8. Qxb7 {[%clk
0:04:50.1]} 8... Na5 {[%clk 0:04:29]} 9. Bb5+ {[%clk 0:04:41.5]} 9... Bd7 {[%clk
0:04:13.8]} 10. Bxd7+ {[%clk 0:04:38.4]} 10... Kxd7 {[%clk 0:04:10.8]} 11. Qa6
{[%clk 0:04:32.4]} 11... cxb2 {[%clk 0:04:01]} 12. Bxb2 {[%clk 0:04:27.4]} 12...
Nc6 {[%clk 0:03:54.7]} 13. Rc1 {[%clk 0:04:22.1]} 13... Ne5 {[%clk 0:03:46.5]}
14. Bxe5 {[%clk 0:04:18.6]} 14... Ke8 {[%clk 0:03:39.9]} 15. Qc6+ {[%clk
0:04:14.8]} 15... Ke7 {[%clk 0:03:37.5]} 16. Nc3 {[%clk 0:04:12.5]} 16... dxe5
{[%clk 0:03:32.9]} 17. Nd5+ {[%clk 0:04:11.7]} 17... Qxd5 {[%clk 0:03:23.3]} 18.
exd5 {[%clk 0:04:11.6]} 18... Rb8 {[%clk 0:03:19.2]} 19. Qxc7+ {[%clk
0:04:10.6]} 1-0

[Event "Live Chess"]
[Site "Chess.com"]
[Date "2023.05.21"]
[Round "-"]
[White "RedRook90"]
[Black "grillage"]
[Result "1-0"]
[WhiteElo "1954"]
[BlackElo "1782"]
[TimeControl "300"]
[EndTime "6:26:30 PDT"]
[Termination "RedRook90 won by resignation"]

1. c4 {[%clk 0:04:56.7]} 1... b6 {[%clk 0:04:55.6]} 2. g3 {[%clk 0:04:55.7]}
2... Bb7 {[%clk 0:04:40.8]} 3. Nf3 {[%clk 0:04:54.9]} 3... e6 {[%clk 0:04:38.2]}
4. Bg2 {[%clk 0:04:54.3]} 4... Nf6 {[%clk 0:04:36.5]} 5. O-O {[%clk 0:04:52.8]}
5... Be7 {[%clk 0:04:34.6]} 6. Nc3 {[%clk 0:04:52.4]} 6... O-O {[%clk
0:04:33.4]} 7. b3 {[%clk 0:04:48.9]} 7... d6 {[%clk 0:04:32.7]} 8. Bb2 {[%clk
0:04:48.4]} 8... Nbd7 {[%clk 0:04:31.9]} 9. d4 {[%clk 0:04:48]} 9... e5 {[%clk
0:04:30.8]} 10. dxe5 {[%clk 0:04:43.6]} 10... Nxe5 {[%clk 0:04:29.3]} 11. Nxe5
{[%clk 0:04:42]} 11... dxe5 {[%clk 0:04:28.6]} 12. Bxb7 {[%clk 0:04:40.8]} 1-0